Cogmind - Beta 14 @@@ ROGUE MODE // 2024.10.15 @ 13:28:59 Player: nostromo Result: Destroyed by G-47 Trooper with Particle Gun Performance ------------- Evolutions (2) 1000 Regions Visited (3) 600 Robots Destroyed (33) 165 Value Destroyed (1089) 1089 Prototype IDs (0) 0 Alien Tech Used (0) 0 Bonus (0) 0 TOTAL SCORE: 2854 Bonus ------- None Cogmind --------- Core Integrity 0/550 Matter 270/300 Energy 84/265 System Corruption 7% Temperature Cool (18) Movement Core (250) Ox4 Location -8/Materials Parts ------- > --- POWER (2) -------- Reinforced Ion Engine > --- PROPULSION (2) --- (None) > --- UTILITY (4) ------ (None) > --- WEAPON (3) ------- Particle Gun > --- INVENTORY (5) ---- Medium Matter Pod (100) Advanced Visual Processing Unit Terrain Scan Processor Peak State ------------ > --- POWER ------------ Deuterium Engine Light Deuterium Engine > --- PROPULSION ------- Light Treads Armored Treads > --- UTILITY ---------- Improved Heat Sink Huge Storage Unit High-capacity Matter Pod Sensor Array > --- WEAPON ----------- Small Laser Assault Rifle Grenade Launcher > --- INVENTORY -------- Light Ion Engine Advanced Visual Processing Unit Terrain Scan Processor [Rating: 19] Favorites ----------- Power Ion Engine Engine Ion Engine Propulsion Light Treads Treads Light Treads Leg Aluminum Leg Utility Small Storage Unit Device Sensor Array Storage Small Storage Unit Weapon Light Assault Rifle Energy Gun Small Laser Energy Cannon Particle Cannon Ballistic Gun Light Assault Rifle Launcher Grenade Launcher Special Weapon Welding Torch Impact Weapon Hammer Slashing Weapon Mining Claw Build | -11 -10 -9 -8 ------- Run | Yrd Mat Mat Mat Slots Evolved 4 | . . 2 2 Power 1 | . . . 1 Propulsion . | . . . . Utility 2 | . . 2 . Weapon 1 | . . . 1 Parts Attached 37 | 6 . 14 17 Power 7 | 1 . 1 5 Engine 7 | 1 . 1 5 Core . | . . . . Reactor . | . . . . Propulsion 11 | 2 . 6 3 Treads 8 | . . 5 3 Leg 3 | 2 . 1 . Wheel . | . . . . Hover . | . . . . Flight . | . . . . Utility 7 | 1 . 5 1 Device 4 | . . 3 1 Storage 3 | 1 . 2 . Processor . | . . . . Hackware . | . . . . Protection . | . . . . Artifact . | . . . . Weapon 12 | 2 . 2 8 Energy Gun 4 | 1 . . 3 Energy Cannon 1 | . . 1 . Ballistic Gun 3 | 1 . 1 1 Ballistic Cannon . | . . . . Launcher 1 | . . . 1 Special Weapon 1 | . . . 1 Impact Weapon 1 | . . . 1 Slashing Weapon 1 | . . . 1 Piercing Weapon . | . . . . Special Melee Weapon . | . . . . Unidentified Prototypes . | . . . . Parts Lost 21 | . . 4 17 Power 3 | . . . 3 Propulsion 6 | . . 1 5 Utility 4 | . . 1 3 Weapon 8 | . . 2 6 Highest Loss Streak 14 | . . 1 14 To Critical Strikes . | . . . . Average Slot Usage (%) 85 | . 85 79 91 Engine 12 | . 14 11 14 Treads 13 | . . 18 16 Leg 8 | . 28 3 . Device 9 | . . 9 17 Storage 16 | . 14 16 17 Energy Gun 4 | . 14 1 2 Energy Cannon 4 | . . 5 7 Ballistic Gun 14 | . 14 13 14 Peak Build Rating 19 | 6 6 12 19 Average Rating 9 | 4 6 8 13 On Entrance 6 | . 6 6 12 Naked Turns 10 | . . . 10 Heaviest Build 106 | 12 12 99 106 Greatest Support 40 | 20 20 40 40 Greatest Overweight (x) 5 | . . 4 5 Average Overweight (x) . | . . . 2 Largest Inventory Capacity 25 | 8 8 25 25 Average Capacity 14 | 7 8 11 24 Most Carried 10 | 5 5 8 10 Average Carried 6 | 1 4 7 7 Final Capacity 25 | 8 8 25 5 Final Carried 8 | 1 5 8 3 Class Distribution -------------------- 67% | Mutant 30% | Skirmisher Dominant Class ---------------- Mutant | -10/Materials Mutant | -9/Materials Skirmisher | -8/Materials Resources | -11 -10 -9 -8 ----------- Run | Yrd Mat Mat Mat Matter Collected 958 | 258 8 348 344 Remotely . | . . . . Salvage Created 1268 | . 32 626 610 Parts 76 | . 6 45 25 Haulers Intercepted . | . . . . Recyclers Shooed 2 | . 1 . 1 Parts Field Recycled . | . . . . Retrieved Matter . | . . . . Parts Self-Destructed . | . . . . Prevented . | . . . . Kills | -11 -10 -9 -8 ------- Run | Yrd Mat Mat Mat Combat Hostiles Destroyed 29 | . 3 15 11 Melee 3 | . . . 3 Guns 22 | . 3 11 8 Cannons 4 | . . 4 . Classes Destroyed 6 | . 1 4 1 Worker 1 | . . . 1 Watcher 3 | . . 1 2 Swarmer 6 | . 3 3 . Grunt 14 | . . 6 8 Brawler 4 | . . 2 2 Sentry 5 | . . 4 1 Best Kill Streak 5 | . 3 3 5 Combat Bots Only 4 | . 3 3 4 Max Kills in Single Turn 1 | . 1 1 1 Gunslinging . | . . . . Exploded . | . . . . Melee 1 | . . . 1 Uniques/NPCs Destroyed . | . . . . Combat | -11 -10 -9 -8 -------- Run | Yrd Mat Mat Mat Hostile Shots Fired 268 | . 12 113 143 Missed 64 | . 3 25 36 Damage Taken 2940 | . 83 1049 1808 Core 716 | . 20 146 550 Absorbed by Shields . | . . . . Core Remaining (%) 85 | 100 92 63 . Volleys Fired 107 | . 8 59 40 Largest 3 | . 2 2 3 Hottest 128 | . 60 88 128 Shots Fired 222 | . 16 109 97 Gun 184 | . 16 92 76 Cannon 36 | . . 17 19 Launcher 2 | . . . 2 Special . | . . . . Kinetic 141 | . 8 84 49 Thermal 79 | . 8 25 46 Explosive 2 | . . . 2 Electromagnetic . | . . . . Robot Hit Streak 11 | . 4 10 11 Robot Miss Streak 5 | . 3 5 4 Penetration Max . | . . . . Secondary Targets 3 | . . 3 . Max Gunslinging Chain 1 | . . 1 . Shots Hit Robots 131 | . 6 63 62 Core Hits 73 | . 4 35 34 Critical Kills . | . . . . Critical Parts Destroyed 2 | . . 1 1 Critical Strikes 2 | . . 1 1 Destroy 1 | . . 1 . Smash 1 | . . . 1 Melee Attacks 5 | . . . 5 Impact 2 | . . . 2 Slashing 3 | . . . 3 Piercing . | . . . . Sneak Attacks . | . . . . Combat Hostiles . | . . . . Follow-up Attacks . | . . . . Damage Inflicted 1889 | . 76 758 1055 Guns 1164 | . 67 537 560 Cannons 428 | . . 203 225 Explosions 200 | . . . 200 Melee 55 | . . . 55 Ramming 42 | . 9 18 15 Kinetic 838 | . 26 492 320 Thermal 754 | . 41 248 465 Explosive 200 | . . . 200 Electromagnetic . | . . . . Impact 55 | . . . 55 Slashing . | . . . . Piercing . | . . . . Highest Corruption 7 | . . . 7 Average Corruption 6 | . . . 6 Corruption Purged . | . . . . Corruption Blocked . | . . . . Overload Shots . | . . . . Overflow Damage 38 | . . . 38 Projectiles . | . . . . Explosions 8 | . . . 8 Melee 30 | . . . 30 Knockbacks 1 | . . 1 . Impact 1 | . . 1 . Kinetic . | . . . . Secondary . | . . . . Self-Inflicted Damage 25 | . . . 25 Shots 1 | . . . 1 Rammed 9 | . . 5 4 Targets Rammed 11 | . 1 5 5 Kicked 1 | . 1 . . Crushed 1 | . . . 1 Highest Temperature 256 | . 60 212 256 Average Temperature 76 | . 28 54 95 Received Heat Transfer 1395 | . . 441 954 Effects 3 | . . 3 . Interference 3 | . . 3 . Siege Activations . | . . . . Robots Corrupted . | . . . . Combat Hostiles . | . . . . Parts Fried . | . . . . Impact Corruptions 1 | . . . 1 Robots Melted . | . . . . Combat Hostiles . | . . . . Parts Melted 1 | . . . 1 Heat Transferred 1526 | . 100 470 956 Parts Sabotaged . | . . . . Parts Stolen . | . . . . Parts Stripped . | . . . . Power Chain Reactions . | . . . . Alert | -11 -10 -9 -8 ------- Run | Yrd Mat Mat Mat Peak Influence 261 | . 70 261 180 Initial 74 | . . 29 74 Average 83 | . 4 141 74 Maximum Alert Level 1 | . . 1 . Low Security (%) 95 | 100 100 87 100 Level 1 4 | . . 12 . Level 2 . | . . . . Level 3 . | . . . . Level 4 . | . . . . Level 5 . | . . . . High Security . | . . . . Max Security . | . . . . Squads Dispatched 5 | . . 4 1 Investigation 1 | . . 1 . Extermination . | . . . . Reinforcement 4 | . . 3 1 Assault . | . . . . Garrison . | . . . . Intercept . | . . . . Searches Triggered . | . . . . Construction Impeded . | . . . . Haulers Reinforced . | . . . . Active Scanning Responses . | . . . . Cargo Convoy Interrupts . | . . . . Stealth | -11 -10 -9 -8 --------- Run | Yrd Mat Mat Mat Distress Signals 4 | . . 3 1 Communications Jammed . | . . . . Distress Signals . | . . . . Times Spotted 54 | . 5 24 25 Peak Tracking Total 7 | . 3 4 7 Tactical Retreats 2 | . . 1 1 Traps | -11 -10 -9 -8 ------- Run | Yrd Mat Mat Mat Traps Triggered 1 | . . 1 . Indirectly . | . . . . Trap Hack Attempts . | . . . . Triggered . | . . . . Disarmed . | . . . . Reprogrammed . | . . . . Reused . | . . . . Traps Extracted . | . . . . Installed . | . . . . Triggered . | . . . . Machines | -11 -10 -9 -8 ---------- Run | Yrd Mat Mat Mat Machines Disabled 1 | . . 1 . Max in Single Turn 1 | . . 1 . Machines Repaired . | . . . . Machines Dismantled . | . . . . Machines Sabotaged . | . . . . Overloaded Fab Kills . | . . . . Hacking | -11 -10 -9 -8 --------- Run | Yrd Mat Mat Mat Machines Accessed 1 | . 1 . . Terminals 1 | . 1 . . Fabricators . | . . . . Repair Stations . | . . . . Recycling Units . | . . . . Scanalyzers . | . . . . Garrison Access . | . . . . Total Hacks 1 | . 1 . . Successful 1 | . 1 . . Failed . | . . . . Catastrophic . | . . . . Database Lockouts . | . . . . Manual . | . . . . Terminals 1 | . 1 . . Fabricators . | . . . . Repair Stations . | . . . . Recycling Units . | . . . . Scanalyzers . | . . . . Garrison Access . | . . . . Terminal Hacks 1 | . 1 . . Record 1 | . 1 . . Fabricator Hacks . | . . . . Repair Station Hacks . | . . . . Recycling Unit Hacks . | . . . . Scanalyzer . | . . . . Garrison Access Hacks . | . . . . Unauthorized Hacks . | . . . . Terminals . | . . . . Fabricators . | . . . . Repair Stations . | . . . . Recycling Units . | . . . . Scanalyzers . | . . . . Garrison Access . | . . . . Data Cores Recovered . | . . . . Used . | . . . . Hacking Detections . | . . . . Full Trace Events . | . . . . Feedback Events . | . . . . Feedback Blocked . | . . . . Robot Schematics Acquired . | . . . . Robots Built . | . . . . Authchips . | . . . . Time . | . . . . Total Robot Build Rating . | . . . . Part Schematics Acquired . | . . . . Parts Built . | . . . . Authchips . | . . . . Time . | . . . . Total Part Build Rating . | . . . . Parts Repaired . | . . . . Time . | . . . . Parts Recycled . | . . . . Recycled Matter . | . . . . Retrieved Matter . | . . . . Retrieved Components . | . . . . Parts Scanalyzed . | . . . . Part Schematics Acquired . | . . . . Parts Damaged . | . . . . Bothacking | -11 -10 -9 -8 ------------ Run | Yrd Mat Mat Mat Used RIF Installer . | . . . . Robots Hacked . | . . . . Non-combat . | . . . . Combat . | . . . . Robot Hacks Applied . | . . . . Relay Couplers Released . | . . . . Fabnet Peak Effective % . | . . . . Robots Rewired . | . . . . Allies Hacked . | . . . . Hacks Repelled . | . . . . Allies | -11 -10 -9 -8 -------- Run | Yrd Mat Mat Mat Total Allies . | . . . . Largest Group . | . . . . Highest-Rated Group . | . . . . Highest-Rated Ally . | . . . . Total Orders . | . . . . Ally Attacks . | . . . . Total Damage . | . . . . Kills . | . . . . Allies Corrupted . | . . . . Allies Melted . | . . . . Intel | -11 -10 -9 -8 ------- Run | Yrd Mat Mat Mat Robot Analysis Total . | . . . . Derelict Logs Recovered . | . . . . Drone Launches . | . . . . Drone Recoveries . | . . . . Exploration | -11 -10 -9 -8 ------------- Run | Yrd Mat Mat Mat Turns Passed 2434 | 61 570 985 818 Spaces Moved 945 | 45 248 451 201 Core 17 | 11 . 2 4 Treads 547 | . . 350 197 Legs 381 | 34 248 99 . Wheels . | . . . . Hover . | . . . . Flight . | . . . . Fastest Speed 50 | 50 120 120 50 Average Speed 186 | 102 120 171 318 Slowest Speed 570 | 120 120 320 570 Overloaded Moves . | . . . . Propulsion Burnouts . | . . . . Robots Hopped . | . . . . Cave-ins Triggered . | . . . . Exploration Rate (%) 25 | 4 33 47 17 Regions Visited 3 Branch Regions . Pre-discovered Areas . | . . . . Known Exits Taken . | . . . . Unknown Exits Taken 3 | 1 1 1 . Scrap Searched . | . . . . Spaces Dug . | . . . . Terrain Destroyed 17 | . . . 17 Melee . | . . . . Projectile . | . . . . AOE 17 | . . . 17 Terrain Rammed . | . . . . Walls Destroyed . | . . . . Machines Disabled . | . . . . Actions | -11 -10 -9 -8 --------- Run | Yrd Mat Mat Mat Total 1407 | 59 506 553 289 Wait 260 | 2 246 12 . Move 942 | 44 247 450 201 Hop . | . . . . Pick Up 30 | 7 4 6 13 Fast Attach 8 | . . 8 . Attach 24 | 6 . 2 16 Detach . | . . . . Swap 5 | . . 4 1 Drop 15 | . . 7 8 Fire 107 | . 8 59 40 Melee 5 | . . . 5 Ram 1 | . . . 1 Kick 1 | . 1 . . Crush 9 | . . 5 4 Escape Stasis . | . . . . Rewire . | . . . . Trap . | . . . . Miscellaneous . | . . . . Route ------- -11/Scrapyard -10/Materials (discovered 2 exits: *Mat / [*Min]) -9/Materials -8/Materials History --------- Turn | Location | Event 8 | -11/Scrapyard | Discovered new exit (range 16) 62 | -11/Scrapyard | Entered Materials 88 | -10/Materials | Discovered new exit (range 16) 142 | -10/Materials | Discovered new exit (range 5) 310 | -10/Materials | Build established: Mutant 632 | -10/Materials | Entered another Materials area 632 | -9/Materials | Evolved 2 slots: Utility x2 1219 | -9/Materials | Discovered new exit (range 15) 1617 | -9/Materials | Entered another Materials area 1617 | -8/Materials | Evolved 2 slots: Power x1, Weapon x1 1905 | -8/Materials | Build established: Skirmisher 2328 | -8/Materials | Lost 3 parts (2n1w) 2419 | -8/Materials | Core integrity fell below 50% 2425 | -8/Materials | Core integrity fell below 20% 2435 | -8/Materials | Destroyed by G-47 Trooper with Particle Gun Last Messages --------------- U-05 Engineer builds a Wall. Particle Gun destroyed. Slammed into B-36 Bruiser. B-36 Bruiser destroyed. [Achievement: Fist Fight] U-05 Engineer builds a Wall. Acquired Hammer. Lgt. Ion Engine destroyed. Critical hit (Burn: +37). U-05 Engineer lays Concrete. G-50 Soldier suffers critical hit (Smash). Destroyed Carbon-fiber Leg. G-50 Soldier system corrupted by crushing effect. G-50 Soldier destroyed. Hammer destroyed. U-05 Engineer lays Concrete. Acquired Rnf. Ion Engine. U-05 Engineer builds a Wall. Acquired Particle Gun. Map ----- +----------------------------------------------------+ | ?????????????????????????????????????????????????? | | ?????????????????????????????????????????????????? | | ?????????????????????????????????????????????????? | | ?????????????????????????????????????????????????? | | ??????????????????????????? ?????????????????????? | | ??????????????????????????? ?????????????????????? | | ??????????????????????????? ?????????????????????? | | ??????????????????????????? ?????????????????????? | | ??????????????????????????? ?????????????????????? | | ??????????????????????????? ?????????????????????? | | ??????????????????????????? ?????????????????????? | | ??????????????????????????# #????????????????????? | | ??????????????????????????# #????????????????????? | | ??????????????????????????# #????????????????????? | | ??????????????????????????# #????????????????????? | | ??????????????????????????# #????????????????????? | | ??????????????????????????# #????????########????? | | ??????????????????????????# #????????# #????? | | ??????????????????????????# #????????# #????? | | ??????????????????????????# #????????# """#????? | | ??????????????????????????# #????????# """#????? | | ????????????????????????### #????????# """#??### | | ????????????????????##### # ########?# ! #??# | | ????????????????????# """ #?####+###### # | | ????????????????????# "Y" ##### # | | ????????????????????# @!g k + # | | ????????????????????# !%!%g % ##### # | | ????????????????????# ###=#g #???## # | | ????????????????????# #?###u# #????# # | | ????????????????????# #???#%########????# ######## | | ????????????????????# #???# ##?????????# ??????? | | ????????????######### #???# ##?????????# ??????? | | ????????????#[/ ## ##??# # ?????????# ??????? | | ????????????# """ # #?## # T????????## ##?????? | | ????????????# """|+ #?## # ?????????# ???????? | | ????????????# """ # #??# #* ????????# ???????? | | ????????????# #####??? ? ??????? ???????? | | ????????????# #??????? ? ??????? ???????? | | ????????????########??????? ?###+??????? ???????? | | ??????????????????????????? ????????????# ???????? | | ??????????????????????????? ?????????????????????? | | ??????????????????????????? ?????????????????????? | | ??????????????????????????? ?????????????????????? | | ?????????????????????????????????????????????????? | | ?????????????????????????????????????????????????? | | ?????????????????????????????????????????????????? | | ?????????????????????????????????????????????????? | | ?????????????????????????????????????????????????? | | ?????????????????????????????????????????????????? | | ?????????????????????????????????????????????????? | +----------------------------------------------------+ Best States ------------- Heat Dissipation 50 Energy Generation 23 Energy Capacity 315 Matter Stores 460 Matter Capacity 500 Sight Range 16 Robot Scan Range 14 Terrain Scan Density 10 Evasion (%) 55 Recoil Reduction 2 Trap Extractor Capacity 4 Item Schematics ----------------- None Robot Schematics ------------------ None Fabricated ------------ Nothing Alien Tech Used ----------------- None Achievements -------------- Fist Fight Challenges ------------ None Game ------ Seed DecoderGreatSuite Manual? 0 Play Time 00:17:12 Cumulative 5.4 hours Start 2024.10.15 @ 13:11:17 End 2024.10.15 @ 13:28:59 Sessions 1 Manual Loads 0 Difficulty Rogue Special Mode None Game No. 11 Rogue 11 Adventurer 0 Explorer 0 Win Type - Total 0 Types 0/0/0/0/0/0/0/0/0 Lore% 2 Gallery% 11 Achievement% 8 Wizard Run 0 Options --------- Layout 1 ASCII 0 Keyboard 0 Movement Mouse Keybinds 0 Fullscreen 1 Font 32/SmallcapsGlow Map View 50x40 Zoom Use 0% Tactical HUD 0 Map Filters NONE Filters NONE Steam 1 RUN: 445b5a21-92e2-44c7-b144-c2167000e872